bitfinex/quotes_ETHUSD_20250813
["timestamp","ask_amount","ask_price","bid_price","bid_amount"]
[1755061386073,0.1072,4663.3,4663.2,8.424]
[1755061386472,1.0259,4663.3,4663.2,8.424]
[1755061388286,1.5759,4663.3,4663.2,8.424]
[1755061388491,1.73369,4663.3,4663.2,8.424]
[1755061390692,0.81499,4663.3,4663.2,8.424]
[1755061390985,1.5759,4663.3,4663.2,8.424]
[1755061394688,1.73369,4663.3,4663.2,8.425]
[1755061395201,0.26499,4663.3,4663.2,8.425]
[1755061395409,0.1072,4663.3,4663.2,8.425]
[1755061395584,0.1072,4663.3,4663.2,8.8951]
[1755061396291,0.1072,4663.3,4663.2,8.425]
[1755061396688,0.1072,4663.3,4663.2,8.8951]
[1755061397389,0.1072,4663.3,4663.2,8.425]
[1755061403915,0.1072,4663.3,4663.2,8.8951]
[1755061404122,0.1072,4663.3,4663.2,9.3455]
[1755061406776,0.1072,4663.3,4663.2,8.8951]
[1755061408907,0.1072,4663.3,4663.2,5.141]
[1755061409104,1.0259,4663.3,4663.2,8.424]
[1755061409774,0.1072,4663.3,4663.2,5.141]
[1755061409974,1.0435,4663.3,4663.2,8.424]
[1755061411996,0.1072,4663.3,4663.2,8.424]
[1755061413705,0.1072,4663.3,4663.2,9.3553]
[1755061414417,0.1072,4663.3,4663.2,8.424]
[1755061415488,0.1072,4663.3,4663.2,5.14]
[1755061416707,0.1072,4663.3,4663.2,8.422]
[1755061417312,0.002,4663.6,4663.2,8.8788]
[1755061417477,0.002,4663.6,4663.3,0.9313]
[1755061417678,0.002,4663.6,4663.4,3.282]
[1755061417910,0.002,4663.6,4663.4,4.2133]
[1755061418079,0.002,4663.6,4663.5,0.9313]
[1755061419279,0.002,4663.6,4663.5,0.4745]
[1755061419504,0.002,4663.6,4663.5,0.9313]
[1755061420206,0.002,4663.6,4663.4,3.282]
[1755061421585,0.002,4663.6,4663.4,3.7565]
[1755061421802,0.002,4663.6,4663.4,3.282]
[1755061422881,0.002,4663.6,4663.1,0.1072]
[1755061423083,0.9363,4663.5,4663.2,8.422]
[1755061423284,0.9363,4663.4,4663.3,3.282]
[1755061423694,1.0435,4663.4,4663.3,3.282]
[1755061425030,0.1072,4663.4,4663.3,3.282]
[1755061425333,1.0435,4663.4,4663.3,3.282]
[1755061426109,0.1072,4663.4,4663.3,3.282]
[1755061426929,0.1172,4663.4,4663.3,3.282]
[1755061437822,0.01,4663.4,4663.3,3.7565]
[1755061438057,0.01,4663.4,4663.3,3.282]
[1755061441027,0.01,4663.4,4663.3,4.1835]
[1755061441656,0.01,4663.4,4663.3,4.2907]
[1755061442857,0.1092,4664.4,4663.3,4.2907]
[1755061443110,0.002,4664.4,4664.0,0.1072]
[1755061443253,0.002,4664.4,4664.0,3.3882]
[1755061443665,0.002,4664.4,4664.0,4.2897]
[1755061443965,0.002,4664.4,4664.0,3.3882]
[1755061445647,0.9654,4664.1,4664.0,3.281]
[1755061446632,0.002,4664.1,4664.0,3.281]
[1755061446832,0.002,4664.1,4664.0,3.6091]
[1755061447770,0.9654,4664.1,4664.0,3.6091]
[1755061447977,0.9654,4664.1,4664.0,3.281]
[1755061448183,0.9654,4664.1,4664.0,3.28]
[1755061450081,0.1092,4664.1,4664.0,3.28]
[1755061450693,1.0726,4664.1,4663.4,2.672]
[1755061450978,0.1072,4663.8,4663.5,3.28]
[1755061451168,0.5732,4663.8,4663.5,3.28]
[1755061451544,0.1072,4663.8,4663.5,3.28]
[1755061451788,0.9634,4663.7,4663.5,3.28]
[1755061451946,0.9634,4663.6,4663.5,3.28]
[1755061455064,0.1072,4663.8,4663.5,3.28]
[1755061455368,0.4974,4663.7,4663.5,3.28]
[1755061455534,0.9634,4663.6,4663.5,3.28]
[1755061459273,0.1072,4663.8,4663.5,3.28]
[1755061459472,0.5732,4663.8,4663.5,3.28]
[1755061459847,0.1072,4663.8,4663.5,3.28]
[1755061460048,0.9634,4663.7,4663.5,3.28]
[1755061461080,0.1072,4663.8,4663.5,3.28]
[1755061467063,0.9634,4663.7,4663.5,3.28]
[1755061467279,0.9634,4663.7,4663.2,5.14]
[1755061467280,0.9634,4663.6,4663.2,5.14]
[1755061467587,0.9634,4663.5,4663.3,3.279]
[1755061467884,0.9634,4663.4,4663.3,3.279]
[1755061468106,1.0706,4663.4,4663.3,3.279]
[1755061469867,1.0706,4663.4,4663.2,5.14]
[1755061470064,0.1072,4663.4,4663.3,3.279]
[1755061470679,1.0178,4663.4,4663.3,3.279]
[1755061471885,1.0178,4663.4,4663.3,3.28]
[1755061474269,1.0178,4663.4,4663.3,0.001]
[1755061474472,1.0178,4663.4,4663.3,3.28]
[1755061474473,1.5678,4663.4,4663.3,3.28]
[1755061474700,1.72458,4663.4,4663.3,3.28]
[1755061474901,1.72458,4663.4,4663.3,0.001]
[1755061475204,1.72458,4663.4,4663.3,3.28]
[1755061476189,8.89458,4663.4,4663.3,8.419]
[1755061476390,8.89458,4663.4,4663.3,5.14]
[1755061476589,0.55,4663.3,4663.1,0.001]
[1755061476789,1.370358,4663.2,4663.1,0.001]
[1755061477107,1.800058,4663.2,4663.1,5.141]
[1755061477585,1.800058,4663.2,4663.1,8.42]
[1755061480907,0.889458,4663.2,4663.1,8.42]
[1755061481112,1.800058,4663.2,4663.1,8.42]
[1755061481409,11.66450816,4663.2,4663.1,5.141]
[1755061481610,0.55,4663.1,4662.1,0.001]
[1755061481918,0.55,4662.9,4662.1,0.001]
[1755061482412,0.55,4662.7,4662.1,0.001]
[1755061482713,0.55,4662.7,4662.2,0.235]
[1755061482907,0.9520058,4663.0,4662.1,0.001]
[1755061482908,0.55,4662.5,4662.1,0.001]
[1755061483409,0.55,4662.3,4662.1,0.001]
[1755061483589,0.69606,4662.2,4662.1,0.001]
[1755061484211,0.4297,4662.6,4662.1,0.001]
[1755061484416,0.4809,4662.8,4662.1,0.001]
[1755061484417,0.55,4662.7,4662.2,1.773]
[1755061484809,0.4297,4662.9,4662.2,1.773]
[1755061485394,0.4297,4662.9,4662.3,5.141]
[1755061485589,0.55,4662.8,4662.3,5.141]
[1755061485917,0.4297,4662.8,4662.3,5.141]
[1755061486091,0.55,4662.7,4662.3,5.141]
[1755061486292,0.14606,4662.6,4662.3,5.141]
[1755061486514,0.55,4663.1,4662.3,5.141]
[1755061487618,0.55,4662.9,4662.4,3.279]
[1755061487826,0.55,4663.5,4662.4,3.279]
[1755061488003,0.55,4662.7,4662.4,3.279]
[1755061488389,0.9106,4662.6,4662.4,3.279]
[1755061488625,0.57576,4662.5,4662.4,3.279]
[1755061489286,1.60666,4662.5,4662.4,3.279]
[1755061490086,0.69606,4662.5,4662.4,3.279]
[1755061490294,0.55,4663.4,4662.4,3.279]
[1755061490596,0.9106,4663.3,4662.4,3.279]
[1755061490933,0.1072,4662.5,4662.4,3.279]
[1755061491092,0.5369,4662.5,4662.4,3.279]
[1755061491594,0.5369,4662.5,4662.3,5.141]
[1755061491793,0.1072,4662.5,4662.4,3.279]
[1755061492289,1.0178,4662.5,4662.4,3.279]
[1755061492511,1.5678,4662.5,4662.4,3.279]
[1755061492724,1.72458,4662.5,4662.4,3.279]
[1755061493034,0.81398,4662.5,4662.4,3.279]
[1755061493193,1.24368,4662.5,4662.4,3.279]
[1755061493701,1.72458,4662.5,4662.4,3.279]
[1755061495225,0.81398,4662.5,4662.4,3.279]
[1755061495432,0.6572,4662.5,4662.4,3.279]
[1755061496526,0.1072,4662.5,4662.4,3.279]
[1755061497494,0.1072,4662.5,4662.4,3.7515]
[1755061497902,0.1072,4662.5,4662.4,3.279]
[1755061499227,1.0178,4662.5,4662.4,3.279]
[1755061499738,1.0178,4662.5,4662.3,5.142]
[1755061499932,0.6572,4662.5,4662.4,3.279]
[1755061500529,1.615,4662.5,4662.4,3.279]
[1755061500731,0.55,4662.4,4662.3,5.142]
[1755061500934,0.55,4662.4,4662.3,8.421]
[1755061501115,1.5078,4662.4,4662.3,8.421]
[1755061501815,1.5078,4662.4,4662.3,5.142]
[1755061502540,0.55,4662.3,4662.1,0.001]
[1755061502711,0.8737,4662.2,4662.1,0.001]
[1755061502913,0.6572,4662.2,4662.1,6.92]
[1755061503547,0.1072,4662.2,4662.1,6.92]
[1755061505617,0.1072,4662.2,4662.1,7.3665]
[1755061505819,0.1072,4662.2,4662.1,7.8294]
[1755061506912,0.1072,4662.6,4662.1,7.8294]
[1755061507113,0.1072,4662.6,4662.1,6.92]
[1755061507314,0.1072,4662.6,4662.2,0.9094]
[1755061507713,0.1072,4662.6,4662.1,6.92]
[1755061507915,0.1072,4662.6,4662.3,0.9094]
[1755061508166,0.1072,4663.4,4662.5,0.1072]
[1755061508310,0.1072,4663.4,4662.6,0.9094]
[1755061508642,0.1072,4663.4,4662.7,4.1874]
[1755061508852,0.1072,4663.4,4662.8,0.9094]
[1755061509227,0.1072,4663.4,4662.9,0.9094]
[1755061509426,0.1072,4663.4,4663.0,3.278]
[1755061509648,0.1072,4663.4,4663.0,4.60614]
[1755061509825,0.1072,4663.4,4663.0,3.69674]
[1755061510022,0.1072,4663.4,4663.1,0.9094]
[1755061510439,0.1072,4663.4,4663.2,3.278]
[1755061510635,0.002,4663.6,4663.3,3.278]
[1755061510837,0.002,4663.6,4663.4,3.278]
[1755061511243,0.1072,4663.5,4663.4,3.278]
[1755061513026,0.1072,4663.5,4662.2,0.1072]
[1755061513354,0.1072,4662.7,4662.1,5.143]
[1755061513552,0.55,4663.5,4662.2,3.277]
[1755061513758,0.9578,4663.0,4662.2,3.277]
[1755061513955,0.1072,4662.3,4662.2,3.277]
[1755061522041,0.5787,4662.3,4662.2,3.277]
[1755061522241,0.1072,4662.3,4662.2,3.277]
[1755061522478,0.5787,4662.3,4662.2,3.277]
[1755061523072,0.1072,4662.3,4662.2,3.277]
[1755061523254,1.065,4662.3,4662.2,3.277]
[1755061524679,0.1072,4662.3,4662.2,3.277]
[1755061526363,0.1072,4662.3,4662.2,3.7235]
[1755061526554,0.1072,4662.3,4662.2,4.1864]
[1755061527060,0.002,4663.6,4662.2,4.1864]
[1755061527260,0.1072,4662.6,4662.3,0.9094]
[1755061527460,0.1072,4662.6,4662.4,3.277]
[1755061527775,0.1072,4662.6,4662.4,4.1864]
[1755061528078,0.1072,4662.6,4662.4,3.277]
[1755061528443,0.1072,4662.6,4662.1,5.143]
[1755061528868,0.002,4663.6,4662.2,3.277]
[1755061529040,0.1072,4662.3,4662.2,3.277]
[1755061532762,1.0282,4662.3,4662.2,3.277]
[1755061535163,0.1072,4662.3,4662.2,3.277]
[1755061537288,1.0282,4662.3,4662.2,3.277]
[1755061538966,1.0302,4662.3,4662.1,5.143]
[1755061539172,0.1092,4662.3,4662.2,3.277]
[1755061540171,1.0302,4662.3,4662.2,3.277]
[1755061540371,1.0302,4662.3,4662.1,5.143]
[1755061540372,0.55,4662.2,4662.1,5.143]
[1755061540719,2.34602,4662.2,4662.1,8.42]
[1755061541457,2.34602,4662.2,4662.1,5.142]
[1755061541663,9.51602,4662.2,4661.9,5.142]
[1755061541859,0.6572,4662.0,4661.9,5.142]
[1755061542086,1.674722,4662.0,4661.9,5.142]
[1755061542289,2.595722,4662.0,4661.9,5.142]
[1755061542695,2.595722,4662.0,4661.9,8.419]
[1755061544298,2.595722,4662.0,4658.5,0.38706643]
[1755061544497,2.595722,4662.0,4658.3,0.4639]
[1755061544498,0.1072,4658.9,4658.3,0.4639]
[1755061544719,0.1072,4658.9,4658.5,0.4639]
[1755061545193,0.1072,4658.9,4658.6,0.9268]
[1755061545612,0.1072,4658.9,4658.7,3.278]
[1755061546103,0.1072,4658.9,4658.8,0.9268]
[1755061546275,0.55,4661.8,4658.8,0.9268]
[1755061546474,0.1072,4659.4,4658.9,4.2048]
[1755061546693,0.1072,4659.4,4658.9,3.278]
[1755061546904,0.1072,4659.4,4659.0,0.9268]
[1755061547294,0.1072,4659.4,4659.1,0.9268]
[1755061547496,0.921,4660.7,4659.2,3.278]
[1755061547803,0.1072,4659.6,4659.3,0.4639]
[1755061548014,0.1072,4659.6,4659.4,6.0698]
[1755061548318,0.1072,4659.6,4659.5,3.278]
[1755061549309,0.1072,4659.6,4658.8,0.4639]
[1755061549469,0.4531,4659.9,4658.9,8.422]
[1755061549675,0.1072,4659.0,4658.9,8.422]
[1755061550713,0.1072,4659.0,4658.9,5.143]
[1755061550882,0.1072,4659.0,4658.9,8.422]
[1755061551471,0.1072,4659.0,4658.9,8.8859]
[1755061551871,0.1072,4659.0,4658.9,8.8849]
[1755061553724,0.1072,4659.0,4658.9,8.421]
[1755061553923,0.1072,4659.0,4658.9,8.422]
[1755061554489,0.1072,4659.0,4658.9,9.3488]
[1755061554911,0.1072,4659.0,4658.9,0.9268]
[1755061555111,0.1072,4659.0,4658.9,9.3488]
[1755061556632,0.1072,4659.3,4658.9,9.3488]
[1755061556806,0.1072,4659.3,4659.0,0.9268]
[1755061556996,0.1072,4659.3,4659.1,3.278]
[1755061557192,0.1072,4659.3,4659.1,4.2048]
[1755061557391,0.1072,4659.3,4659.2,0.4639]
[1755061558722,0.1072,4659.3,4659.1,3.278]
[1755061558922,0.1072,4659.3,4659.2,0.4639]
[1755061559698,0.4976,4660.8,4659.2,0.9268]
[1755061559900,0.1072,4659.6,4659.2,1.1868]
[1755061560210,0.1072,4659.6,4659.3,3.278]
[1755061560414,0.1072,4659.6,4659.3,4.2005]
[1755061560725,0.1072,4659.6,4659.2,0.26]
[1755061561023,0.55,4661.0,4659.5,0.26]
[1755061561205,0.55,4660.9,4659.6,3.278]
[1755061561406,0.1072,4659.7,4659.5,0.26]
[1755061561729,0.9424,4659.6,4659.5,0.26]
[1755061561925,0.9424,4659.6,4659.5,8.682]
[1755061563130,0.1072,4659.7,4659.5,8.682]
[1755061563327,0.552,4659.7,4659.5,5.404]
[1755061563644,0.9424,4659.6,4659.5,5.404]
[1755061563800,0.9424,4659.6,4659.5,8.682]
[1755061564196,0.1072,4659.7,4659.5,8.682]
[1755061564629,0.1072,4659.7,4659.5,5.404]
[1755061564830,0.1072,4659.6,4659.5,5.404]
[1755061565134,0.1072,4659.6,4659.5,8.682]
[1755061566500,0.002,4660.8,4659.5,9.6045]
[1755061566831,0.4448,4660.7,4659.6,3.278]
[1755061567129,0.1072,4659.7,4659.6,0.83]
[1755061567630,0.1072,4659.7,4659.6,9.252]
[1755061571116,0.1072,4659.7,4659.6,5.974]
[1755061571617,0.1072,4659.7,4659.6,9.252]
[1755061572736,0.002,4660.8,4659.6,10.1745]
[1755061572935,0.1072,4659.9,4659.6,10.1745]
[1755061573111,0.1072,4659.9,4659.7,0.4596]
[1755061573310,0.1072,4659.9,4659.8,3.278]
[1755061573511,0.1072,4659.9,4659.8,8.422]
[1755061574215,0.1072,4660.2,4659.8,8.8816]
[1755061574846,0.1072,4660.2,4659.8,5.6036]
[1755061575057,0.1072,4660.2,4659.8,5.144]
[1755061575238,0.1072,4660.2,4659.9,3.278]
[1755061575433,0.1072,4660.5,4659.9,3.278]
[1755061575652,0.1072,4660.5,4659.9,4.2005]
[1755061577258,0.002,4660.8,4660.4,0.1072]
[1755061577630,0.002,4660.8,4660.5,0.4596]
[1755061577835,0.002,4660.8,4660.6,3.277]
[1755061578335,0.002,4660.8,4660.6,3.7366]
[1755061578540,0.002,4660.8,4660.7,0.4596]
[1755061578743,0.002,4660.8,4660.7,0.9225]
[1755061580047,0.002,4660.8,4660.7,1.0297]
[1755061581449,0.002,4660.8,4660.7,0.5668]
[1755061581657,0.002,4660.8,4659.8,5.144]
[1755061581831,1.0496,4660.7,4660.0,0.1072]
[1755061582041,0.4448,4660.6,4660.0,0.1072]
[1755061582352,0.4976,4660.5,4660.0,0.1072]
[1755061582551,0.4976,4660.5,4660.1,3.277]
[1755061582753,0.4448,4660.4,4659.8,5.144]
[1755061582954,0.4448,4660.4,4659.9,3.277]
[1755061582955,0.1072,4660.1,4659.9,3.277]
[1755061583264,0.9424,4660.0,4659.8,5.144]
[1755061583456,0.4976,4660.0,4659.9,3.277]
[1755061583626,0.9424,4660.0,4659.9,3.277]
[1755061584452,0.9424,4660.0,4659.8,5.144]
[1755061584664,0.9424,4660.0,4659.9,3.277]
[1755061584860,0.1072,4660.1,4659.9,3.277]
[1755061585237,0.9424,4660.0,4659.9,3.277]
[1755061585945,0.9424,4660.0,4659.9,8.42]
[1755061586139,0.9424,4660.0,4659.9,5.143]
[1755061586344,0.9424,4660.0,4659.9,8.42]
[1755061586539,0.9424,4660.0,4659.6,0.83]
[1755061586866,0.002,4660.8,4659.9,5.143]
[1755061587049,0.002,4660.8,4660.0,3.277]
[1755061587457,0.55,4660.6,4659.9,5.143]
[1755061587763,0.55,4660.4,4660.0,3.277]
[1755061587939,0.9424,4660.3,4660.0,3.277]
[1755061588145,0.9424,4660.2,4660.0,3.277]
[1755061588455,0.9424,4660.1,4659.9,5.143]
[1755061588760,0.55,4660.4,4659.6,0.83]
[1755061588964,0.002,4660.8,4660.0,5.143]
[1755061589163,0.002,4660.8,4660.1,3.277]
[1755061589465,0.55,4660.6,4660.1,3.277]
[1755061589662,0.55,4660.4,4660.1,3.277]
[1755061589966,0.9377,4660.3,4660.1,3.277]
[1755061590169,0.55,4660.3,4660.2,8.421]
[1755061590732,1.4877,4660.3,4660.2,8.421]
[1755061594534,1.4877,4660.3,4660.2,5.144]
[1755061594735,1.63647,4660.3,4660.2,5.144]
[1755061595867,1.63647,4660.3,4660.2,8.421]
[1755061596261,1.74367,4660.3,4660.2,8.421]
[1755061597642,0.25597,4660.3,4660.2,8.421]
[1755061597841,0.1072,4660.3,4660.2,8.421]
[1755061598771,0.1072,4660.3,4660.2,9.3204]
[1755061599075,0.1072,4660.3,4660.2,8.421]
[1755061599244,0.1072,4660.3,4660.2,9.3204]
[1755061599446,0.1072,4660.5,4660.2,9.3204]
[1755061599672,0.1072,4660.5,4660.2,5.144]
[1755061599874,0.1072,4660.5,4660.3,3.277]
[1755061600878,0.1072,4660.5,4660.2,5.144]
[1755061601084,0.1072,4660.5,4660.3,3.277]
[1755061601976,0.1072,4660.5,4660.4,3.277]
[1755061602179,0.9377,4660.4,4660.2,5.144]
[1755061602484,1.4877,4660.3,4660.2,5.144]
[1755061602689,1.64719,4660.3,4660.2,8.421]
[1755061602979,1.64719,4660.3,4660.2,5.144]
[1755061603951,0.55,4660.2,4659.6,0.65365917]
[1755061604151,0.55,4660.0,4659.7,5.144]
[1755061604354,1.4877,4659.9,4659.8,3.277]
[1755061604672,1.63647,4659.9,4659.8,3.277]
[1755061604877,1.74367,4659.9,4659.8,3.277]
[1755061605849,1.74367,4659.9,4659.7,5.144]
[1755061606073,0.80597,4659.9,4659.8,3.277]
[1755061606281,0.6572,4659.9,4659.8,3.277]
[1755061606473,0.55,4659.8,4659.7,5.144]
[1755061606674,1.4877,4659.8,4659.7,8.421]
[1755061607373,1.4877,4659.8,4659.7,5.144]
[1755061607561,1.4877,4659.8,4659.7,8.421]
[1755061607766,1.64719,4659.8,4659.7,8.421]
[1755061609650,0.70949,4659.8,4659.7,8.421]
[1755061609852,0.15949,4659.8,4659.7,8.421]
[1755061610362,1.64719,4659.8,4659.7,8.421]
[1755061610758,0.70949,4659.8,4659.7,8.421]
[1755061611959,0.70949,4659.8,4659.7,5.144]
[1755061612161,0.70949,4659.8,4659.7,8.421]
[1755061612365,0.15949,4659.8,4659.7,8.421]
[1755061612561,0.64346,4660.6,4659.7,8.421]
[1755061612775,0.4671,4660.7,4659.7,8.421]
[1755061613491,0.55,4660.6,4659.7,8.421]
[1755061613988,0.002,4660.8,4659.7,8.421]
[1755061614187,0.002,4660.8,4659.7,8.8575]
[1755061614595,0.552,4660.8,4659.7,8.8575]
[1755061614782,0.70117,4660.8,4659.7,8.8575]
[1755061615354,0.70117,4660.8,4659.7,8.421]
[1755061615565,0.002,4660.8,4659.8,0.8994]
[1755061615862,0.002,4660.8,4659.9,4.1764]
[1755061616261,0.002,4660.8,4660.0,0.4365]
[1755061616459,0.002,4660.8,4660.1,3.277]
[1755061617464,0.002,4660.8,4660.2,3.277]
[1755061618074,0.002,4660.8,4660.2,3.7135]
[1755061618384,0.1072,4660.3,4660.2,3.7399]
[1755061618578,0.1072,4660.4,4660.2,4.55039]
[1755061618775,0.1072,4660.4,4660.2,3.7399]
[1755061619090,0.1072,4660.4,4660.3,0.4365]
[1755061620376,0.1072,4660.4,4659.8,0.4383]
[1755061620575,0.1072,4660.4,4659.9,3.277]
[1755061620775,0.1072,4660.1,4659.9,3.277]
[1755061620976,0.1072,4660.1,4660.0,0.4383]
[1755061622008,0.1072,4660.1,4660.0,4.1772]
[1755061622375,0.1072,4660.1,4660.0,0.9012]
[1755061622693,0.1072,4660.1,4660.0,4.1772]
[1755061625487,0.1072,4660.1,4660.0,3.7143]
[1755061625691,0.1072,4660.1,4660.0,3.276]
[1755061628491,0.1072,4660.1,4659.7,5.144]
[1755061628693,0.1072,4660.1,4659.8,3.276]
[1755061629094,0.1072,4660.1,4659.9,3.276]
[1755061630975,0.1072,4660.1,4659.9,3.7143]
[1755061631318,0.1072,4660.1,4659.9,3.276]
[1755061632286,0.1072,4660.1,4659.7,5.144]
[1755061632601,0.1072,4660.1,4659.8,3.276]
[1755061632782,0.1072,4660.1,4659.8,4.1772]
[1755061632984,0.1072,4660.1,4659.9,0.9012]
[1755061633213,0.1072,4660.1,4660.0,3.276]
[1755061633520,0.1072,4660.1,4660.0,3.7143]
[1755061633821,0.1072,4660.5,4660.0,4.1772]
[1755061633986,0.1072,4660.5,4660.1,0.4383]
[1755061634180,0.1072,4660.5,4660.2,3.276]
[1755061634882,0.1092,4660.8,4660.3,0.9012]
[1755061635077,0.1092,4660.8,4660.4,4.1762]
[1755061635504,0.1092,4660.8,4660.5,0.4383]
[1755061635804,0.1092,4660.8,4660.6,3.7133]
[1755061637892,0.1092,4660.8,4660.6,3.275]
[1755061638911,0.1092,4660.8,4660.2,0.1072]
[1755061639113,0.1092,4660.8,4660.3,3.275]
[1755061639418,0.1092,4660.8,4660.2,0.1072]
[1755061639584,0.1092,4660.8,4660.3,3.275]
[1755061639789,0.002,4660.8,4660.4,0.9012]
[1755061640008,0.002,4660.8,4660.6,0.1072]
[1755061640226,0.002,4660.8,4660.7,3.275]
[1755061640605,0.002,4660.8,4660.7,0.9012]
[1755061640801,0.002,4660.8,4660.7,3.275]
[1755061644393,0.002,4660.8,4660.4,0.5455]
[1755061644591,0.002,4660.8,4660.5,3.275]
[1755061644792,0.002,4660.8,4660.5,3.7133]
[1755061646433,0.002,4660.8,4660.5,3.275]
[1755061647713,0.002,4660.8,4660.6,3.274]
[1755061648601,0.002,4660.8,4660.7,0.9012]
[1755061648825,0.002,4660.8,4660.7,0.1072]
[1755061649014,0.002,4660.8,4660.7,0.5455]
[1755061650635,0.002,4660.8,4660.7,3.3812]
[1755061651308,0.002,4660.8,4660.7,3.8252]
[1755061651835,0.002,4660.8,4660.7,4.2881]
[1755061652420,0.002,4660.8,4660.7,3.3812]
[1755061654433,0.002,4660.8,4660.7,3.274]
[1755061654636,0.002,4660.8,4660.4,0.1072]
[1755061654812,0.4397,4660.8,4660.5,3.274]
[1755061656336,0.9114,4660.7,4660.4,0.1072]
[1755061656539,0.002,4660.8,4660.6,3.274]
[1755061657533,0.002,4660.8,4660.6,3.8252]
[1755061657733,0.002,4660.8,4660.7,0.82652]
[1755061657937,0.002,4660.8,4660.6,3.3812]
[1755061659840,0.002,4660.8,4660.7,0.9069]
[1755061660203,0.002,4661.3,4660.8,0.55]
[1755061660404,0.002,4661.3,4661.2,0.1072]
[1755061660603,0.002,4661.3,4661.2,3.3802]
[1755061660868,0.002,4661.3,4661.2,4.62512]
[1755061661139,0.002,4661.3,4661.2,0.44522]
[1755061661343,0.002,4661.3,4661.2,3.3802]
[1755061661729,0.002,4661.3,4661.2,4.2871]
[1755061662141,0.002,4661.3,4661.2,4.39265646]
[1755061662650,0.002,4661.3,4661.2,4.2871]
[1755061663361,0.002,4661.8,4661.2,4.39642916]
[1755061663523,0.002,4661.8,4661.7,0.1072]
[1755061663722,0.002,4661.8,4661.7,3.3802]
[1755061665527,0.002,4661.8,4661.7,0.1072]
[1755061665832,0.9134,4661.8,4661.7,0.1072]
[1755061666032,0.9134,4661.8,4661.7,3.3802]
[1755061666453,0.002,4661.8,4661.7,0.1072]
[1755061666654,0.002,4661.8,4661.7,3.3802]
[1755061667457,0.9134,4661.8,4661.7,3.273]
[1755061667627,0.002,4661.8,4661.4,2.7802]
[1755061667828,0.002,4661.8,4661.5,3.273]
[1755061669242,0.002,4661.8,4661.7,0.1072]
[1755061670574,0.002,4661.8,4661.7,0.5512]
[1755061671761,0.002,4661.8,4661.7,1.0141]
[1755061673193,0.002,4662.1,4661.7,1.0141]
[1755061673376,0.002,4662.1,4661.9,5.141]
[1755061673678,0.002,4662.1,4662.0,3.3792]
[1755061674085,0.002,4662.1,4662.0,3.8232]
[1755061674398,0.002,4662.7,4662.1,0.55]
[1755061674576,0.4397,4664.1,4662.1,0.55]
[1755061674778,0.4397,4664.1,4663.5,0.1072]
[1755061675070,0.9134,4664.1,4663.5,3.54103205]
[1755061675296,0.002,4664.1,4663.5,3.73330321]
[1755061675451,0.002,4664.1,4663.5,6.40630321]
[1755061675789,0.002,4664.1,4663.5,3.13430321]
[1755061676080,0.002,4664.1,4663.5,6.40630321]
[1755061676746,0.002,4664.1,4663.5,7.36394769]
[1755061676941,0.002,4664.1,4664.0,5.141]
[1755061677170,0.002,4664.1,4664.0,8.413]
[1755061677657,0.002,4664.1,4664.0,8.857]
[1755061677856,0.002,4664.1,4664.0,6.0479]
[1755061678060,0.002,4664.1,4664.0,9.3189]
[1755061678274,0.002,4664.1,4664.0,9.21010321]
[1755061679379,0.002,4664.1,4664.0,8.76610321]
[1755061680562,0.002,4664.1,4664.0,8.412]
[1755061680748,0.9238,4664.1,4664.0,8.412]
[1755061681751,0.002,4664.1,4664.0,8.412]
[1755061682871,0.002,4664.1,4664.0,5.141]
[1755061683072,0.9238,4664.1,4664.0,8.412]
[1755061683582,0.9238,4664.1,4664.0,5.141]
[1755061683791,0.9238,4664.1,4664.0,8.41]
[1755061685290,0.9238,4664.1,4664.0,5.139]
[1755061685578,0.9238,4664.1,4664.0,8.41]
[1755061685753,0.9238,4664.1,4664.0,5.139]
[1755061686089,0.9238,4664.1,4664.0,8.41]
[1755061686751,1.031,4664.1,4664.0,8.41]
[1755061687566,0.002,4664.1,4664.0,8.41]
[1755061688674,0.002,4664.1,4664.0,8.409]
[1755061689922,0.002,4664.1,4664.0,5.139]
[1755061690210,0.4299,4664.1,4664.0,8.409]
[1755061690368,0.9238,4664.1,4664.0,8.409]
[1755061690711,0.002,4664.1,4664.0,8.409]
[1755061692979,0.002,4664.1,4664.0,5.139]
[1755061693183,0.9238,4664.1,4664.0,8.409]
[1755061694004,0.002,4664.1,4664.0,8.409]
[1755061694826,0.002,4664.1,4664.0,8.5162]